[Event "NJSK 2021 Jeugd C"]
[Site "Almelo, Netherlands"]
[Date "2021.08.07"]
[Round "9.6"]
[White "Katpatal, Akshaj"]
[Black "Aravindhan, Achyuth"]
[Result "1-0"]
[TimeControl "90min + 30sec/move"]
[WhiteElo "1650"]
[BlackElo "1031"]

1. e4 {[%clk 01:30:58]} {[%emt 00:00:02]} c5 {[%clk 01:30:56]} {[%emt
00:00:05]} 2. Nf3 {[%clk 01:31:23]} {[%emt 00:00:05]} d6 {[%clk 01:31:21]}
{[%emt 00:00:05]} 3. c3 {[%clk 01:31:48]} {[%emt 00:00:05]} Nf6 {[%clk
01:31:44]} {[%emt 00:00:07]} 4. Be2 {[%clk 01:32:13]} {[%emt 00:00:05]} g6
{[%clk 01:32:02]} {[%emt 00:00:12]} 5. O-O {[%clk 01:32:22]} {[%emt 00:00:20]}
Bg7 {[%clk 01:32:25]} {[%emt 00:00:07]} 6. Bb5+ {[%clk 01:32:42]} {[%emt
00:00:11]} Bd7 {[%clk 01:32:39]} {[%emt 00:00:16]} 7. Bxd7+ {[%clk 01:33:02]}
{[%emt 00:00:09]} Qxd7 {[%clk 01:32:54]} {[%emt 00:00:15]} 8. Re1 {[%clk
01:33:26]} {[%emt 00:00:06]} O-O {[%clk 01:32:10]} {[%emt 00:01:15]} 9. d4
{[%clk 01:33:50]} {[%emt 00:00:06]} cxd4 {[%clk 01:32:22]} {[%emt 00:00:17]} 10.
cxd4 {[%clk 01:34:14]} {[%emt 00:00:07]} Qc7 {[%clk 01:29:10]} {[%emt
00:03:41]} 11. Nc3 {[%clk 01:34:13]} {[%emt 00:00:30]} Nbd7 {[%clk 01:29:08]}
{[%emt 00:00:32]} 12. Bf4 {[%clk 01:34:31]} {[%emt 00:00:13]} Nb6 {[%clk
01:28:41]} {[%emt 00:00:55]} 13. e5 {[%clk 01:34:44]} {[%emt 00:00:20]} dxe5
{[%clk 01:28:27]} {[%emt 00:00:44]} 14. Bxe5 {[%clk 01:34:57]} {[%emt
00:00:17]} Qd7 {[%clk 01:28:11]} {[%emt 00:00:40]} 15. Qe2 {[%clk 01:34:25]}
{[%emt 00:01:04]} Rac8 {[%clk 01:26:39]} {[%emt 00:02:05]} 16. Rad1 {[%clk
01:34:34]} {[%emt 00:00:22]} Nc4 {[%clk 01:26:11]} {[%emt 00:00:58]} 17. Bxf6
{[%clk 01:34:53]} {[%emt 00:00:10]} Bxf6 {[%clk 01:23:33]} {[%emt 00:03:09]} 18.
Ne5 {[%clk 01:35:09]} {[%emt 00:00:14]} Bxe5 {[%clk 01:18:41]} {[%emt
00:05:21]} 19. dxe5 {[%clk 01:35:25]} {[%emt 00:00:14]} Qe6 {[%clk 01:18:33]}
{[%emt 00:00:19]} 20. Rd4 {[%clk 01:30:53]} {[%emt 00:05:21]} Nb6 {[%clk
01:17:06]} {[%emt 00:01:55]} 21. Rh4 {[%clk 01:31:15]} {[%emt 00:00:10]} Rc4
{[%clk 01:15:24]} {[%emt 00:02:05]} 22. Rh3 {[%clk 01:28:43]} {[%emt 00:03:09]}
Rd8 {[%clk 01:14:07]} {[%emt 00:01:41]} 23. Qe3 {[%clk 01:28:53]} {[%emt
00:00:27]} f5 {[%clk 01:12:27]} {[%emt 00:02:07]} 24. exf6 {[%clk 01:29:12]}
{[%emt 00:00:14]} Qxf6 {[%clk 01:12:40]} {[%emt 00:00:16]} 25. Rf3 {[%clk
01:29:11]} {[%emt 00:00:32]} Qd6 {[%clk 01:02:46]} {[%emt 00:09:48]} 26. h3
{[%clk 01:28:50]} {[%emt 00:01:25]} Re8 {[%clk 00:48:38]} {[%emt 00:14:37]} 27.
Ne4 {[%clk 01:28:25]} {[%emt 00:00:58]} Qd4 {[%clk 00:45:25]} {[%emt 00:03:41]}
28. Qxd4 {[%clk 01:28:28]} {[%emt 00:00:29]} Rxd4 {[%clk 00:45:45]} {[%emt
00:00:09]} 29. Nf6+ {[%clk 01:28:47]} {[%emt 00:00:11]} Kf7 {[%clk 00:44:45]}
{[%emt 00:01:30]} 30. Nxe8+ {[%clk 01:28:10]} {[%emt 00:01:06]} Kxe8 {[%clk
00:45:04]} {[%emt 00:00:12]} 31. Rfe3 {[%clk 01:28:23]} {[%emt 00:00:17]} Nd5
{[%clk 00:43:09]} {[%emt 00:02:08]} 32. Re4 {[%clk 01:28:26]} {[%emt 00:00:45]}
Rd2 {[%clk 00:43:02]} {[%emt 00:00:33]} 33. R1e2 {[%clk 01:28:43]} {[%emt
00:00:16]} Rd1+ {[%clk 00:42:20]} {[%emt 00:01:13]} 34. Kh2 {[%clk 01:28:59]}
{[%emt 00:00:14]} Kd7 {[%clk 00:42:22]} {[%emt 00:00:26]} 35. Rh4 {[%clk
01:29:06]} {[%emt 00:00:23]} h5 {[%clk 00:42:29]} {[%emt 00:00:21]} 36. Re5
{[%clk 01:28:50]} {[%emt 00:00:49]} Kd6 {[%clk 00:42:13]} {[%emt 00:00:45]} 37.
Rg5 {[%clk 01:28:52]} {[%emt 00:00:27]} Rd2 {[%clk 00:42:20]} {[%emt 00:00:23]}
38. Rxg6+ {[%clk 01:29:14]} {[%emt 00:00:09]} e6 {[%clk 00:42:44]} {[%emt
00:00:07]} 39. Re4 {[%clk 01:29:17]} {[%emt 00:00:27]} Nc7 {[%clk 00:42:50]}
{[%emt 00:00:22]} 40. Rb4 {[%clk 01:28:50]} {[%emt 00:00:58]} b6 {[%clk
00:42:30]} {[%emt 00:00:48]} 41. f4 {[%clk 01:28:12]} {[%emt 00:01:10]} Nd5
{[%clk 00:42:36]} {[%emt 00:00:23]} 42. Re4 {[%clk 01:28:20]} {[%emt 00:00:23]}
Rxb2 {[%clk 00:42:11]} {[%emt 00:00:55]} 43. Rgxe6+ {[%clk 01:28:38]} {[%emt
00:00:12]} Kc5 {[%clk 00:42:28]} {[%emt 00:00:14]} 44. f5 {[%clk 01:28:37]}
{[%emt 00:00:31]} Rf2 {[%clk 00:42:19]} {[%emt 00:00:37]} 45. Ra4 {[%clk
01:28:27]} {[%emt 00:00:40]} Nf4 {[%clk 00:42:01]} {[%emt 00:00:42]} 46. Ree4
{[%clk 01:28:28]} {[%emt 00:00:34]} Nd5 {[%clk 00:40:40]} {[%emt 00:01:52]} 47.
Rxa7 {[%clk 01:27:47]} {[%emt 00:01:12]} Rxf5 {[%clk 00:40:41]} {[%emt
00:00:29]} 48. g4 {[%clk 01:27:47]} {[%emt 00:00:29]} hxg4 {[%clk 00:40:40]}
{[%emt 00:00:32]} 49. hxg4 {[%clk 01:27:47]} {[%emt 00:00:31]} Nc3 {[%clk
00:38:04]} {[%emt 00:02:58]} 50. Re3 {[%clk 01:27:54]} {[%emt 00:00:30]} Rf2+
{[%clk 00:37:14]} {[%emt 00:01:20]} 51. Kg1 {[%clk 01:26:09]} {[%emt 00:02:15]}
Rc2 {[%clk 00:37:19]} {[%emt 00:00:24]} 52. Rxc3+ {[%clk 01:26:16]} {[%emt
00:00:24]} Rxc3 {[%clk 00:37:32]} {[%emt 00:00:18]} 53. Rc7+ {[%clk 01:26:41]}
{[%emt 00:00:05]} Kd4 {[%clk 00:37:51]} {[%emt 00:00:08]} 54. Rxc3 {[%clk
01:27:07]} {[%emt 00:00:06]} Kxc3 {[%clk 00:38:10]} {[%emt 00:00:12]} 55. g5
{[%clk 01:27:30]} {[%emt 00:00:07]} Kb2 {[%clk 00:38:30]} {[%emt 00:00:09]} 56.
g6 {[%clk 01:27:54]} {[%emt 00:00:06]} b5 {[%clk 00:38:34]} {[%emt 00:00:27]}
57. g7 {[%clk 01:28:17]} {[%emt 00:00:07]} Kxa2 {[%clk 00:38:54]} {[%emt
00:00:09]} 58. g8=Q+ {[%clk 01:28:39]} {[%emt 00:00:09]} Kb2 {[%clk 00:39:35]}
{[%emt 00:00:52]} 59. Qb8 {[%clk 01:31:25]} {[%emt 00:00:06]} b4 {[%clk
00:39:30]} {[%emt 00:00:36]} 60. Qxb4+ {[%clk 01:31:48]} {[%emt 00:00:06]} Kc2
{[%clk 00:39:53]} {[%emt 00:00:08]} 61. Qf4 {[%clk 01:32:11]} {[%emt 00:00:07]}
Kd3 {[%clk 00:40:09]} {[%emt 00:00:14]} 62. Qe5 {[%clk 01:32:34]} {[%emt
00:00:07]} Kc4 {[%clk 00:40:23]} {[%emt 00:00:15]} 63. Qe3 {[%clk 01:32:59]}
{[%emt 00:00:06]} Kd5 {[%clk 00:40:41]} {[%emt 00:00:12]} 64. Qf4 {[%clk
01:33:22]} {[%emt 00:00:07]} Ke6 {[%clk 00:40:54]} {[%emt 00:00:17]} 65. Qg5
{[%clk 01:33:48]} {[%emt 00:00:04]} Kd6 {[%clk 00:40:59]} {[%emt 00:00:26]} 66.
Qf5 {[%clk 01:34:12]} {[%emt 00:00:05]} Ke7 {[%clk 00:41:19]} {[%emt 00:00:10]}
67. Qg6 {[%clk 01:34:37]} {[%emt 00:00:04]} Kd7 {[%clk 00:41:37]} {[%emt
00:00:13]} 68. Qf6 {[%clk 01:35:02]} {[%emt 00:00:05]} Kc7 {[%clk 00:41:56]}
{[%emt 00:00:10]} 69. Qe6 {[%clk 01:35:26]} {[%emt 00:00:06]} Kb7 {[%clk
00:42:18]} {[%emt 00:00:08]} 70. Qd6 {[%clk 01:35:52]} {[%emt 00:00:05]} 1-0

[Event "NJSK 2021 Jeugd C"]
[Site "Almelo, Netherlands"]
[Date "2021.08.07"]
[Round "9.7"]
[White "Kurt, Sascha"]
[Black "Krylov, Philippe"]
[Result "1/2-1/2"]
[TimeControl "90min + 30sec/move"]
[WhiteElo "1650"]
[BlackElo "1339"]

1. e4 {[%clk 01:30:56]} {[%emt 00:00:03]} c6 {[%clk 01:30:57]} {[%emt
00:00:03]} 2. d4 {[%clk 01:31:23]} {[%emt 00:00:04]} d5 {[%clk 01:31:24]}
{[%emt 00:00:03]} 3. Nc3 {[%clk 01:31:48]} {[%emt 00:00:05]} dxe4 {[%clk
01:31:45]} {[%emt 00:00:09]} 4. Nxe4 {[%clk 01:32:12]} {[%emt 00:00:06]} Bf5
{[%clk 01:32:10]} {[%emt 00:00:05]} 5. Ng3 {[%clk 01:32:37]} {[%emt 00:00:05]}
Bg6 {[%clk 01:32:36]} {[%emt 00:00:04]} 6. h4 {[%clk 01:33:03]} {[%emt
00:00:03]} h6 {[%clk 01:33:05]} {[%emt 00:00:02]} 7. Nh3 {[%clk 01:33:27]}
{[%emt 00:00:06]} Nf6 {[%clk 01:27:51]} {[%emt 00:05:44]} 8. Nf4 {[%clk
01:33:26]} {[%emt 00:00:31]} Bh7 {[%clk 01:27:54]} {[%emt 00:00:26]} 9. Bc4
{[%clk 01:33:35]} {[%emt 00:00:22]} e5 {[%clk 01:25:45]} {[%emt 00:02:39]} 10.
dxe5 {[%clk 01:31:13]} {[%emt 00:02:52]} Qa5+ {[%clk 01:24:29]} {[%emt
00:01:46]} 11. c3 {[%clk 01:29:45]} {[%emt 00:01:58]} Qxe5+ {[%clk 01:24:43]}
{[%emt 00:00:16]} 12. Qe2 {[%clk 01:29:18]} {[%emt 00:00:57]} Qxe2+ {[%clk
01:24:28]} {[%emt 00:00:44]} 13. Kxe2 {[%clk 01:28:26]} {[%emt 00:01:22]} Bc5
{[%clk 01:20:30]} {[%emt 00:04:28]} 14. Re1 {[%emt 00:04:12]} O-O {[%clk
01:19:46]} {[%emt 00:00:24]} 15. Be3 {[%clk 01:22:02]} {[%emt 00:04:03]} Bxe3
{[%clk 01:16:16]} {[%emt 00:03:59]} 16. fxe3 {[%clk 01:19:48]} {[%emt
00:02:44]} Nbd7 {[%clk 01:15:10]} {[%emt 00:01:36]} 17. Rad1 {[%clk 01:17:25]}
{[%emt 00:02:54]} Ne5 {[%clk 01:13:56]} {[%emt 00:01:44]} 18. Bd3 {[%clk
01:16:03]} {[%emt 00:01:52]} Bxd3+ {[%clk 01:12:17]} {[%emt 00:02:08]} 19. Nxd3
{[%clk 01:15:52]} {[%emt 00:00:41]} Nxd3 {[%clk 01:12:15]} {[%emt 00:00:32]} 20.
Rxd3 {[%clk 01:16:15]} {[%emt 00:00:07]} Rad8 {[%clk 01:12:10]} {[%emt
00:00:34]} 21. Red1 {[%clk 01:16:28]} {[%emt 00:00:18]} Rxd3 {[%clk 01:11:29]}
{[%emt 00:01:11]} 22. Rxd3 {[%clk 01:16:51]} {[%emt 00:00:07]} Re8 {[%clk
01:10:38]} {[%emt 00:01:22]} 23. Nf5 {[%clk 01:15:13]} {[%emt 00:02:07]} g6
{[%clk 01:04:51]} {[%emt 00:06:17]} 24. Nd6 {[%clk 01:14:15]} {[%emt 00:01:28]}
Re7 {[%clk 01:03:05]} {[%emt 00:02:17]} 25. Nc8 {[%clk 01:14:01]} {[%emt
00:00:43]} Rd7 {[%clk 01:03:12]} {[%emt 00:00:22]} 26. Rxd7 {[%clk 01:12:59]}
{[%emt 00:01:33]} Nxd7 {[%emt 00:04:02]} 1/2-1/2

[Event "NJSK 2021 Jeugd C"]
[Site "Almelo, Netherlands"]
[Date "2021.08.07"]
[Round "9.8"]
[White "Kien, Lancelot"]
[Black "Ponomarev, Ivan"]
[Result "0-1"]
[TimeControl "90min + 30sec/move"]
[WhiteElo "1650"]
[BlackElo "1723"]

1. e4 {[%clk 01:30:56]} {[%emt 00:00:02]} c5 {[%clk 01:30:59]} {[%emt
00:00:03]} 2. Nf3 {[%clk 01:31:21]} {[%emt 00:00:05]} e6 {[%clk 01:31:26]}
{[%emt 00:00:04]} 3. d4 {[%clk 01:31:48]} {[%emt 00:00:03]} cxd4 {[%clk
01:31:53]} {[%emt 00:00:03]} 4. Nxd4 {[%clk 01:32:15]} {[%emt 00:00:03]} Nf6
{[%clk 01:32:18]} {[%emt 00:00:04]} 5. Nc3 {[%clk 01:32:35]} {[%emt 00:00:10]}
Nc6 {[%clk 01:32:44]} {[%emt 00:00:05]} 6. Be3 {[%clk 01:32:53]} {[%emt
00:00:11]} Bb4 {[%clk 01:32:40]} {[%emt 00:00:34]} 7. Nxc6 {[%clk 01:33:09]}
{[%emt 00:00:14]} bxc6 {[%clk 01:32:56]} {[%emt 00:00:14]} 8. Bd3 {[%clk
01:33:30]} {[%emt 00:00:10]} d5 {[%clk 01:32:08]} {[%emt 00:01:18]} 9. exd5
{[%clk 01:33:28]} {[%emt 00:00:32]} cxd5 {[%clk 01:30:03]} {[%emt 00:02:34]} 10.
O-O {[%clk 01:33:38]} {[%emt 00:00:20]} O-O {[%clk 01:28:49]} {[%emt 00:01:44]}
11. Bd4 {[%clk 01:33:33]} {[%emt 00:00:36]} Bd7 {[%clk 01:20:50]} {[%emt
00:08:29]} 12. f4 {[%clk 01:32:20]} {[%emt 00:01:43]} Bxc3 {[%clk 01:14:13]}
{[%emt 00:07:06]} 13. Bxc3 {[%clk 01:30:33]} {[%emt 00:02:17]} Rc8 {[%clk
01:06:15]} {[%emt 00:08:28]} 14. Bd4 {[%clk 01:28:03]} {[%emt 00:03:00]} a5
{[%clk 01:03:03]} {[%emt 00:03:42]} 15. Kh1 {[%clk 01:26:55]} {[%emt 00:01:38]}
Re8 {[%clk 00:59:19]} {[%emt 00:04:13]} 16. Qe1 {[%clk 01:17:46]} {[%emt
00:09:39]} Bc6 {[%clk 00:49:09]} {[%emt 00:10:41]} 17. Qh4 {[%clk 01:14:44]}
{[%emt 00:03:31]} h6 {[%clk 00:48:02]} {[%emt 00:01:38]} 18. Rae1 {[%clk
01:12:47]} {[%emt 00:02:27]} Ne4 {[%clk 00:39:41]} {[%emt 00:08:51]} 19. Qxd8
{[%clk 01:10:21]} {[%emt 00:02:56]} Rcxd8 {[%clk 00:39:30]} {[%emt 00:00:41]}
20. Bxe4 {[%clk 01:09:43]} {[%emt 00:01:08]} dxe4 {[%clk 00:39:54]} {[%emt
00:00:06]} 21. c3 {[%clk 01:09:30]} {[%emt 00:00:44]} Rb8 {[%clk 00:39:10]}
{[%emt 00:01:12]} 22. b3 {[%clk 01:06:39]} {[%emt 00:03:23]} Red8 {[%clk
00:35:17]} {[%emt 00:04:21]} 23. Re3 {[%clk 01:03:44]} {[%emt 00:03:26]} f6
{[%clk 00:31:53]} {[%emt 00:03:55]} 24. Rg3 {[%clk 00:58:53]} {[%emt 00:05:20]}
Kf7 {[%clk 00:32:09]} {[%emt 00:00:13]} 25. Kg1 {[%clk 00:50:06]} {[%emt
00:09:17]} Bd5 {[%clk 00:28:55]} {[%emt 00:03:44]} 26. Rf2 {[%clk 00:47:39]}
{[%emt 00:02:58]} a4 {[%clk 00:22:36]} {[%emt 00:06:49]} 27. b4 {[%clk
00:33:17]} {[%emt 00:14:52]} Bc4 {[%clk 00:21:15]} {[%emt 00:01:49]} 28. a3
{[%clk 00:29:37]} {[%emt 00:04:12]} Bd3 {[%clk 00:20:59]} {[%emt 00:00:46]} 29.
Re3 {[%clk 00:27:51]} {[%emt 00:02:16]} Rbc8 {[%clk 00:19:36]} {[%emt
00:01:48]} 30. Re1 {[%clk 00:26:18]} {[%emt 00:02:08]} Rd5 {[%clk 00:18:02]}
{[%emt 00:02:04]} 31. Rc1 {[%clk 00:24:12]} {[%emt 00:02:35]} Rxd4 {[%clk
00:18:21]} {[%emt 00:00:12]} 0-1

[Event "NJSK 2021 Jeugd C"]
[Site "Almelo, Netherlands"]
[Date "2021.08.07"]
[Round "9.9"]
[White "Lopes, Samuel"]
[Black "Madularea, David"]
[Result "0-1"]
[TimeControl "90min + 30sec/move"]
[WhiteElo "1124"]
[BlackElo "1656"]

1. e4 {[%clk 01:30:58]} {[%emt 00:00:02]} c5 {[%clk 01:30:55]} {[%emt
00:00:04]} 2. d4 {[%clk 01:31:23]} {[%emt 00:00:06]} cxd4 {[%clk 01:31:19]}
{[%emt 00:00:05]} 3. c3 {[%clk 01:31:48]} {[%emt 00:00:06]} dxc3 {[%clk
01:31:44]} {[%emt 00:00:04]} 4. Nxc3 {[%clk 01:32:15]} {[%emt 00:00:04]} d6
{[%clk 01:32:00]} {[%emt 00:00:13]} 5. Nf3 {[%clk 01:32:37]} {[%emt 00:00:08]}
Nc6 {[%clk 01:32:25]} {[%emt 00:00:06]} 6. Bc4 {[%clk 01:32:59]} {[%emt
00:00:09]} a6 {[%clk 01:32:46]} {[%emt 00:00:06]} 7. O-O {[%clk 01:33:05]}
{[%emt 00:00:24]} Nf6 {[%clk 01:32:50]} {[%emt 00:00:26]} 8. Qe2 {[%clk
01:33:10]} {[%emt 00:00:26]} Bg4 {[%clk 01:33:07]} {[%emt 00:00:12]} 9. Rd1
{[%clk 01:30:22]} {[%emt 00:03:19]} Rc8 {[%clk 01:31:51]} {[%emt 00:01:44]} 10.
Bf4 {[%clk 01:24:05]} {[%emt 00:06:50]} e5 {[%clk 01:25:51]} {[%emt 00:06:30]}
11. Be3 {[%clk 01:18:02]} {[%emt 00:06:33]} Be7 {[%clk 01:23:39]} {[%emt
00:02:41]} 12. Rac1 {[%clk 01:16:15]} {[%emt 00:02:18]} O-O {[%clk 01:21:35]}
{[%emt 00:02:33]} 13. h3 {[%clk 01:14:56]} {[%emt 00:01:50]} Bh5 {[%clk
01:17:27]} {[%emt 00:04:36]} 14. Bd5 {[%clk 01:09:53]} {[%emt 00:05:35]} Qd7
{[%clk 01:14:39]} {[%emt 00:03:18]} 15. a3 {[%clk 01:05:30]} {[%emt 00:04:53]}
Rfd8 {[%clk 01:10:11]} {[%emt 00:04:57]} 16. Na4 {[%clk 00:58:22]} {[%emt
00:07:39]} Nd4 {[%clk 01:00:38]} {[%emt 00:10:02]} 17. Bxd4 {[%clk 00:56:12]}
{[%emt 00:02:40]} Nxd5 {[%clk 00:59:29]} {[%emt 00:01:40]} 18. Nb6 {[%clk
00:50:32]} {[%emt 00:06:10]} Nxb6 {[%clk 00:59:25]} {[%emt 00:00:34]} 19. Bxb6
{[%clk 00:50:47]} {[%emt 00:00:14]} Rxc1 {[%clk 00:58:14]} {[%emt 00:01:41]} 20.
Rxc1 {[%clk 00:47:35]} {[%emt 00:03:41]} Rc8 {[%clk 00:58:10]} {[%emt
00:00:35]} 21. Rxc8+ {[%clk 00:46:36]} {[%emt 00:01:28]} Qxc8 {[%clk 00:58:28]}
{[%emt 00:00:13]} 22. g4 {[%clk 00:38:16]} {[%emt 00:08:51]} Bg6 {[%clk
00:56:04]} {[%emt 00:02:50]} 23. Nd2 {[%clk 00:34:19]} {[%emt 00:04:30]} Qc6
{[%clk 00:54:21]} {[%emt 00:02:12]} 24. Ba5 {[%clk 00:33:40]} {[%emt 00:01:10]}
Bg5 {[%clk 00:53:19]} {[%emt 00:01:32]} 25. Nc4 {[%clk 00:24:03]} {[%emt
00:10:07]} b5 {[%clk 00:47:07]} {[%emt 00:06:41]} 26. Bd2 {[%clk 00:07:53]}
{[%emt 00:16:41]} Qxc4 {[%clk 00:41:04]} {[%emt 00:06:32]} 27. Qxc4 {[%clk
00:06:15]} {[%emt 00:02:09]} bxc4 {[%clk 00:41:32]} {[%emt 00:00:03]} 28. Bxg5
{[%clk 00:06:35]} {[%emt 00:00:09]} Bxe4 {[%clk 00:41:58]} {[%emt 00:00:04]} 29.
Bd8 {[%clk 00:02:41]} {[%emt 00:04:25]} d5 {[%clk 00:41:55]} {[%emt 00:00:32]}
30. Ba5 {[%clk 00:01:02]} {[%emt 00:02:10]} f6 {[%clk 00:41:32]} {[%emt
00:00:52]} 31. Kf1 {[%clk 00:00:47]} {[%emt 00:00:45]} Kf7 {[%clk 00:41:35]}
{[%emt 00:00:26]} 32. Ke2 {[%clk 00:00:53]} {[%emt 00:00:25]} Kg6 {[%clk
00:41:41]} {[%emt 00:00:23]} 33. Bd2 {[%clk 00:00:32]} {[%emt 00:00:52]} d4
{[%clk 00:40:38]} {[%emt 00:01:33]} 34. f3 {[%clk 00:00:34]} {[%emt 00:00:29]}
Bd3+ {[%clk 00:40:34]} {[%emt 00:00:32]} 35. Kf2 {[%clk 00:00:33]} {[%emt
00:00:32]} Kf7 {[%clk 00:40:27]} {[%emt 00:00:37]} 36. h4 {[%clk 00:00:39]}
{[%emt 00:00:23]} Ke6 {[%clk 00:40:21]} {[%emt 00:00:37]} 37. Kg3 {[%clk
00:00:36]} {[%emt 00:00:33]} Kd5 {[%clk 00:40:29]} {[%emt 00:00:22]} 38. f4
{[%clk 00:00:31]} {[%emt 00:00:36]} e4 {[%clk 00:40:43]} {[%emt 00:00:15]} 39.
Kf2 {[%clk 00:00:31]} {[%emt 00:00:30]} e3+ {[%clk 00:40:38]} {[%emt 00:00:35]}
40. Bxe3 {[%clk 00:00:58]} {[%emt 00:00:04]} dxe3+ {[%clk 00:41:04]} {[%emt
00:00:03]} 41. Kxe3 {[%clk 00:01:22]} {[%emt 00:00:07]} a5 {[%clk 00:41:11]}
{[%emt 00:00:23]} 42. g5 {[%clk 00:00:55]} {[%emt 00:00:57]} f5 {[%clk
00:41:12]} {[%emt 00:00:29]} 43. b3 {[%clk 00:00:33]} {[%emt 00:00:52]} Be4
{[%clk 00:41:21]} {[%emt 00:00:21]} 44. b4 {[%clk 00:00:31]} {[%emt 00:00:31]}
axb4 {[%clk 00:41:45]} {[%emt 00:00:06]} 45. axb4 {[%clk 00:01:01]} {[%emt
00:00:01]} c3 {[%clk 00:42:06]} {[%emt 00:00:09]} 46. h5 {[%clk 00:00:50]}
{[%emt 00:00:41]} Kc4 {[%clk 00:42:30]} {[%emt 00:00:05]} 47. Ke2 {[%clk
00:00:50]} {[%emt 00:00:31]} Kb3 {[%clk 00:42:53]} {[%emt 00:00:06]} 48. Kd1
{[%clk 00:00:43]} {[%emt 00:00:38]} Kb2 {[%clk 00:43:17]} {[%emt 00:00:06]} 49.
h6 {[%clk 00:01:04]} {[%emt 00:00:08]} c2+ {[%clk 00:43:36]} {[%emt 00:00:11]}
50. Ke2 {[%clk 00:01:27]} {[%emt 00:00:08]} g6 {[%clk 00:43:45]} {[%emt
00:00:20]} 51. Kf2 {[%clk 00:01:43]} {[%emt 00:00:14]} c1=Q {[%clk 00:44:09]}
{[%emt 00:00:06]} 52. Kg3 {[%clk 00:02:06]} {[%emt 00:00:08]} Qg1+ {[%clk
00:44:29]} {[%emt 00:00:09]} 53. Kh4 {[%clk 00:02:20]} {[%emt 00:00:16]} Qh2#
{[%emt 00:00:17]} 0-1